{"text_format":"1","workbook":"xlsx","n_sheets":3,"sheets":["ورقة1","ورقة2","ورقة3"],"not_rendered":{"charts":0,"images":6,"macros":1,"external_links":0,"defined_names":1,"comments":0,"pivot_tables":0},"unopened":[],"bounds":{"document_bytes":16777216,"sheet_cells":100000,"rows_first":2000,"rows_last":500,"rows_between":2000,"halvings":0,"cell_chars":16384,"cell_head_chars":4096},"cells_cut":0,"cells_raw":0,"read":"whole","date_system":"1900"}

{"sheet":"ورقة1","index":0,"n_rows":22,"n_cols":15,"rows_kept":22,"cut":false,"hidden":false,"merged":[[3,12,3,13],[3,14,3,15],[11,2,11,3],[9,9,9,10],[2,1,2,5],[1,7,2,10],[13,1,13,2],[4,1,4,2],[4,3,4,5],[13,13,13,15],[13,7,13,8],[13,9,13,10],[11,7,11,8],[11,9,11,10],[7,12,7,13],[7,14,7,15],[9,12,9,13],[11,13,11,15],[9,14,9,15],[7,7,7,8],[7,9,7,10],[9,7,9,8],[15,1,15,3],[17,1,17,2],[17,3,17,4],[17,7,17,8],[17,9,17,10],[15,7,15,8],[21,7,21,8],[21,9,21,10],[19,1,19,2],[19,3,19,4],[21,1,21,2],[21,3,21,4],[15,13,15,15],[19,12,19,13],[19,14,19,15],[21,12,21,13],[21,14,21,15],[17,13,17,14]]}
[]
[null,null,null,null,null,null,null,"خلاصة خدمة"]
[null,"دائرة البحث و التطوير الصناعي"]
[null,null,null,null,null,null,null,null,null,null,null,null,"تاريخ سحب الاستمارة",null,{"$f":"TODAY()","v":"2024-06-17"}]
[null,"الاسم الكامل",null,{"$f":"VLOOKUP(I5,ورقة3!$A$4:$AA$503,4,)","v":"احسان علي كاظم علي"},null,null,null,"ت",2]
[]
[]
[null,"الرقم الرمزي",{"$f":"VLOOKUP(I5,ورقة3!$A$4:$AA$503,2,)","v":66605},null,null,null,null,"الجهة المانحة للشهادة",null,{"$f":"VLOOKUP(I5,ورقة3!$A$4:$AA$503,11,)","v":"جامعة بغداد"},null,null,"تاريخ اخر علاوة",null,{"$f":"VLOOKUP(I5,ورقة3!$A$4:$AA$503,20,)","v":"00:00:00"}]
[]
[null,"هوية الدائرة",{"$f":"VLOOKUP(I5,ورقة3!$A$4:$AA$503,3,)","v":"U 871"},null,null,null,null,"تاريخ الحصول عليها",null,{"$f":"VLOOKUP(I5,ورقة3!$A$4:$AA$503,12,)","v":2014},null,null,"تاريخ اخر ترقية",null,{"$f":"VLOOKUP(I5,ورقة3!$A$4:$AA$503,21,)","v":"00:00:00"}]
[]
[null,"التولد",{"$f":"VLOOKUP(I5,ورقة3!$A$4:$AA$503,5,)","v":"1974-07-29"},null,null,null,null,"تاريخ المباشرة الاولى",null,{"$f":"VLOOKUP(I5,ورقة3!$A$4:$AA$503,13,)","v":"1988-10-02"},null,null,"المركز",{"$f":"VLOOKUP(I5,ورقة3!$A$4:$AA$503,22,)","v":"مركز التصنيع الالكتروني"}]
[]
[null,"الحالة الاجتماعية",null,{"$f":"VLOOKUP(I5,ورقة3!$A$4:$AA$503,6,)","v":"متزوج"},null,null,null,"تاريخ المباشرة الثانية",null,{"$f":"VLOOKUP(I5,ورقة3!$A$4:$AA$503,14,)","v":"00:00:00"},null,null,"القسم ",{"$f":"VLOOKUP(I5,ورقة3!$A$4:$AA$503,23,)","v":0}]
[]
[null,"هل لديه شهيد او سجين سياسي",null,null,{"$f":"VLOOKUP(I5,ورقة3!$A$4:$AA$503,7,)","v":"لا"},null,null,"نوع التعيين",null,{"$f":"VLOOKUP(I5,ورقة3!$A$4:$AA$503,15,)","v":"اعادة تعيين"},null,null,"الشعبة",{"$f":"VLOOKUP(I5,ورقة3!$A$4:$AA$503,24,)","v":0}]
[]
[null,"درجة القربى",null,{"$f":"VLOOKUP(I5,ورقة3!$A$4:$AA$503,8,)","v":0},null,null,null,"العنوان الوظيفي",null,{"$f":"VLOOKUP(I5,ورقة3!$A$4:$AA$503,16,)","v":"رئيس مهندسين اقدم"},null,null,"المنصب",{"$f":"VLOOKUP(I5,ورقة3!$A$4:$AA$503,25,)","v":"معاون الدائرة"}]
[]
[null,"الشهادة الحالية",null,{"$f":"VLOOKUP(I5,ورقة3!$A$4:$AA$503,9,)","v":"ماجستير هندسة "},null,null,null,"الدرجة",{"$f":"VLOOKUP(I5,ورقة3!$A$4:$AA$503,17,)","v":2},"المرحلة",{"$f":"VLOOKUP(I5,ورقة3!$A$4:$AA$503,18,)","v":0},null,"الخدمة المضافة",null,{"$f":"VLOOKUP(I5,ورقة3!$A$4:$AA$503,26,)","v":0}]
[]
[null,"الاختصاص الدقيق",null,{"$f":"VLOOKUP(I5,ورقة3!$A$4:$AA$503,10,)","v":"الكترونيك واتصالات  "},null,null,null,"حالة الموظف",null,{"$f":"VLOOKUP(I5,ورقة3!$A$4:$AA$503,19,)","v":"دراسات دكتوراه"},null,null,"مجموع سنوات الخدمة",null,{"$f":"VLOOKUP(I5,ورقة3!$A$4:$AA$503,27,)","v":0}]

{"sheet":"ورقة2","index":1,"n_rows":21,"n_cols":13,"rows_kept":21,"cut":false,"hidden":false,"merged":[[1,5,2,10],[16,13,16,14],[18,14,18,15],[20,14,20,15],[18,12,18,13],[20,12,20,13],[6,9,6,10],[8,9,8,10],[12,9,12,10],[10,13,10,15],[12,13,12,15],[14,13,14,15],[16,9,16,10],[6,12,6,13],[6,14,6,15],[8,14,8,15],[12,1,12,2],[6,7,6,8],[8,7,8,8],[10,7,10,8],[12,7,12,8],[8,12,8,13],[20,1,20,2],[20,7,20,8],[20,3,20,4],[20,9,20,10],[4,3,4,5],[4,1,4,2],[14,1,14,3],[16,1,16,2],[18,1,18,2],[14,7,14,8],[16,7,16,8],[16,3,16,4],[18,3,18,4]]}
[]
[null,null,null,null,null,"واجهة ادخال البيانات"]
[]
[]
[null,"البحث بالاسم"]
[]
[null,"الرقم الرمزي",null,null,null,null,null,"الجهة المانحة للشهادة",null,null,null,null,"تاريخ اخر علاوة"]
[]
[null,"هوية الدائرة",null,null,null,null,null,"تاريخ الحصول عليها",null,null,null,null,"تاريخ اخر ترقية"]
[]
[null,"التولد",null,null,null,null,null,"تاريخ المباشرة الاولى",null,null,null,null,"المركز"]
[]
[null,"الحالة الاجتماعية",null,"اعزب",null,null,null,"تاريخ المباشرة الثانية",null,null,null,null,"القسم "]
[]
[null,"هل لديه شهيد او سجين سياسي",null,null,null,null,null,"نوع التعيين",null,null,null,null,"الشعبة"]
[]
[null,"درجة القربى",null,null,null,null,null,"العنوان الوظيفي",null,null,null,null,"المنصب"]
[]
[null,"الشهادة الحالية",null,null,null,null,null,"الدرجة",null,"المرحلة",null,null,"الخدمة المضافة"]
[]
[null,"الاختصاص الدقيق",null,null,null,null,null,"حالة الموظف",null,null,null,null,"مجموع سنوات الخدمة"]

{"sheet":"ورقة3","index":2,"n_rows":217,"n_cols":27,"rows_kept":217,"cut":false,"hidden":false,"merged":[]}
[1,2,3,4,5,6,7,8,9,10,11,12,13,14,15,16,17,18,19,20,21,22,23,24,25,26,27]
[]
["ت","الرقم الرمزي","هوية الدائرة","الاسم الكامل","التولد","الحالة الاجتماعية","هل لديه شهيد او سجين سياسي","درجة القربى","الشهادة الحالية","الاختصاص الدقيق","الجهة المانحة للشهادة","تاريخ الحصول عليها","تاريخ المباشرة الاولى        ( تاريخ التعيين )","تاريخ المباشرة الثانية","نوع التعيين","العنوان الوظيفي","الدرجة ","المرحلة","حالة الموظف","تاريخ اخر علاوة","تاريخ اخر ترقية","المركز","القسم","الشعبة","المنصب","الخدمة المضافة","مجموع سنوات الخدمة"]
[1,39292,null,"ابتسام محمد حسن لازم","1972-11-27","اعزب","نعم",null,"بكلوريوس هندسة ","تقنيات حاسوب ","كلية مدينة العلم الجامعة",2012,"1989-08-17",null,"جديد","رئيس مهندسين تقنيين",3,5,"تنسيب داخل الوزارة",null,null,"مركز بحوث النظم و الاتمته",null,null,"مدير عام",null,{"$f":"DATEDIF(M4,TODAY(),\"y\") &  \"سنة\"  & DATEDIF(M4,TODAY(),\"ym\")&\"شهر\" &  DATEDIF(M4,TODAY(),\"md\")& \"يوم\"","v":"34سنة10شهر0يوم"}]
[2,66605,"U 871","احسان علي كاظم علي","1974-07-29","متزوج","لا",null,"ماجستير هندسة ","الكترونيك واتصالات  ","جامعة بغداد",2014,"1988-10-02",null,"اعادة تعيين","رئيس مهندسين اقدم",2,null,"دراسات دكتوراه",null,null,"مركز التصنيع الالكتروني",null,null,"معاون الدائرة"]
[3,102776,"U431","احمد ناظم محمد خلف","1985-08-08","ارمل",null,null,"بكالوريوس هندسة ","سيطرة ونظم  ","الجامعة التكنولوجية",2007,"2005-11-22",null,"فصل سياسي","مهندس أقدم ",5,null,"مستمر",null,null,"مركز بحوث الطيران ",null,null,"مدير مركز"]
[4,66631,"U 418","احمد هادي فرحان شلال","1972-01-13","مطلق",null,null,"بكالوريوس هندسة"," كهرباء ","الجامعة التكنولوجية ",1993,"1989-11-12",null,null,"رئيس مهندسين اقدم",2,null,"مستمر",null,null,null,null,null,"رئيس قسم"]
[5,49522,"U 1012","اسامة خيري سلمان بوهي","1977-03-25",null,null,null,"بكالوريوس ","فيزياء","جامعة بغداد",2000,"1998-05-10",null,null," رئيس فيزياويين",3,null,"اجازة اعالة",null,null,null,null,null,"مسؤول شعبة"]
[6,70602,"U 679","اسامة كاظم وذيح كيطان","1978-05-28",null,null,null,"دبلوم فني ","سيطرة ","المعهد التقني للكهرباء والالكترون",1998,"1995-09-27",null,null,"مدير فني ",3,null,"مستمر"]
[7,42651,"U 270","اسراء صاحب ظاهر حبيب","1980-07-28",null,null,null,"دبلوم فني ","الكترونيك","معهد تكنولوجيا",2001,"1997-11-09",null,null,"معاون مدير فني",4,null,"مستمر"]
[8,39306,"U 715","اسراء عدنان لفتة كزار","1971-11-04",null,null,null,"بكالوريوس هندسة ","ميكانيك  ","الجامعة التكنولوجية",1994,"1991-12-29",null,null,"رئيس مهندسين اقدم",2,null,"مستمر"]
[9,69221,"U434","امال علي عبيد خضير","1970-09-29",null,null,null,"دبلوم فني ","الكترونيك","معهد البعث ",1991,"1997-09-20",null,null,"مدير فني",3,null,"مستمر"]
[10,20648,"Y 1544","امل سلمان شذر راضي","1967-07-01",null,null,null,"بكالوريوس هندسة"," كهرباء ","الجامعة المستنصرية ",2000,null,null,null,"رئيس مهندسين اقدم",2,null,"مستمر"]
[11,45934,null,"أمين جبار عباس ","1967/00/00",null,null,null,"ماجستير فيزياء ","تكنولوجيا الليزر ","الجامعة التكنولوجية",2002,null,null,null,"رئيس فيزياويين أقدم ",2,null,"مستمر "]
[12,67921,"U 441","انتصار عبدالكريم عثمان ","1972-04-07",null,null,null,"بكالوريوس هندسة ","تقنيات الحاسوب ","كلية السلام الجامعة ",2017,"1988-10-04",null,null,"رئيس مهندسين تقنيين أقدم ",2,null,"مستمر"]
[13,10626,"K 508","انور عبدالرضا حسن غلطة","1971-03-22",null,null,null,"بكالوريوس هندسة ","ميكانيك  ","مستنصرية",1995,null,null,null,"رئيس مهندسين ",3,null,"مستمر"]
[14,79197,"U 546","ايمان غازي شريف ناصح","1974-06-04",null,null,null,"دبلوم فني ","حاسبات ","معهد الادارة الرصافة ",1995,"1999-07-28",null,null,"معاون مدير فني",4,null,"مستمر"]
[15,23329,null,"أيناس فوزي عاشور ","1978-08-31",null,null,null,"بكلوريوس ","رياضيات ",null,null,null,null,null,"معاون رئيس مبرمجين ",4,null,"مستمر "]
[16,29556,"U 552","بتول شهاب حبيب عبد","1971-08-27",null,null,null,"بكالوريوس هندسة ","انتاج ومعادن ","الجامعة التكنولوجية ",2014,"1990-11-25",null,null,"رئيس مهندسين اقدم",2,null,"مستمر"]
[17,70981,null,"بسام صالح مهدي صالح ","1974-05-31",null,null,null,"دبلوم فني ",null,"معهد التكنولوجيا",1995,null,null,null,"رئيس ملاحظين فنيين",5,null,"مستمر "]
[18,67962,"U 972","بسعاد محمد سعود عزيز","1973-12-20",null,null,null,"ماجستير هندسة ","ليزر  ","الجامعة التكنولوجية",2014,"1989-12-13",null,null,"رئيس مهندسين أقدم",2,null,"مستمر"]
[19,86525,"U 543","ثامر عبدالرسول فواز سطام","1969-10-01",null,null,null,"اعدادية ","فني كهرباء ","اعدادية الصناعة",1988,"2001-08-11",null,null," مدير فني",3,null,"مستمر"]
[20,65056,"U 955","جواد كاظم محي صالح","1960-10-03",null,null,null,"بكالوريوس هندسة ","كهرباء  ","الجامعة التكنولوجية",1983,"1978-11-01",null,null,"رئيس مهندسين اقدم",2,null,"مستمر"]
[21,66761,"U 400","حامد مهدي كريم طلال","1970-09-28",null,null,null,"بكالوريوس هندسة ","ميكانيك  ","الجامعة التكنولوجية ",1993,"1990-11-13",null,null,"رئيس مهندسين اقدم",2,null,"مستمر"]
[22,65714,"U 254","حسن عباس حسين شاطي","1967-08-07",null,null,null,"ماجستير هندسة ","سيطرة ونظم  ","جامعة فلاديمير",2010,"1981-10-09",null,null,"رئيس مهندسين اقدم",2,null,"مستمر"]
[23,109551,"U931","حسن علي رسول علي","1980-05-15",null,null,null,"بكالوريوس هندسة ","ميكانيك  ","الجامعة المستنصرية",2002,"2007-08-22",null,null,"مهندس اقدم",5,null,"مستمر"]
[24,35777,"U 069","حسين تبينة كاظم جبر","1969-03-03",null,null,null,"دكتوراه هندسة  ","سيطرة ","فلاديمير روسيا",2010,"1988-11-14",null,null,"رئيس مهندسين اقدم",2,null,"مستمر"]
[25,41084,null,"حسين علاء لطيف ","1977/00/00",null,null,null,"ماجستير علوم ","كيمياء ","جامعة جواهد لال نهرو الهند",2015,null,null,null,"رئيس كيمياويين ",3,null,"مستمر "]
[26,65757,null,"حسين علي عيسى مري ","1966-11-21",null,null,null,"بكلوريوس هندسة ","كهرباء / الكترونيك ","الجامعة التكنولوجية",1991,null,null,null,"رئيس مهندسين اقدم",2,null,"مستمر "]
[27,55190,"U 383","حنان صبحي صالح ابراهيم","1972-12-12",null,null,null,"اعدادية ","فني الكترونيك ","اعدادية صناعة ",1990,"1988-01-04",null,null," مدير فني",3,null,"مستمر"]
[28,8702,null,"حيدر جاسم محمد هدو ","1970-04-16",null,null,null,"بكلوريوس هندسة ","ميكانيك ","جامعة بغداد",1993,null,null,null,"رئيس مهندسين أقدم ",2,null,"مستمر "]
[29,68111,"U 432","حيدر جياد مهدي هزاع","1969-01-20",null,null,null,"اعدادية فني ","ميكانيك ","اعدادية صناعة ",1988,"1987-05-11",null,null," مدير فني",3,null,"مستمر"]
[30,39624,null,"حيدر حمودي عبد الهادي ","1970-10-03",null,null,null,"بكلوريويس هندسة ","ميكانيك ","الجامعة التكنولوجية",1995,null,null,null,"رئيس مهندسين أقدم ",2,null,"مستمر "]
[31,49913,"U 1011","حيدر محمد عجيل موحي","1976-05-29",null,null,null,"بكالوريوس ","فيزياء","بغداد",2000,"1999-02-22",null,null,"رئيس فيزياويين",3,null,"تنسيب داخل الدائرة  "]
[32,65803,"U 736","خضير جسام ابراهيم خضير","1970-05-23",null,null,null,"بكالوريوس هندسة ","كهرباء ","الجامعة التكنولوجية ",1995,"1991-12-03",null,null,"رئيس مهندسين اقدم",2,null,"مستمر"]
[33,56529,"U922","خنساء قاسم امين حسن","1975-08-10",null,null,null,"بكالوريوس ","فيزياء","جامعة بغداد",1999,"1996-12-04",null,null,"معاون رئيس فيزياويين",4,null,"مستمر"]
[34,65821,"U 887","دريد لطفي عبدالله نعمان","1965-01-21",null,null,null,"بكالوريوس هندسة  ","انتاج ومعادن ","الجامعة التكنولوجية ",2004,"1982-03-23",null,null,"رئيس مهندسين اقدم",2,null,"مستمر"]
[35,42951,"U544","ذكرى عباس علي عيسى","1970-09-09",null,null,null,"بكالوريوس هندسة ","تقنيات حاسبات  ","كلية مدينة العلم",2014,"1997-12-01",null,null,"معاون رئيس مهندسين",4,null,"مستمر"]
[36,69507,null,"راميا شاكر محمود جاسم ","1980-03-22",null,null,null,"بكالوريوس ","فيزياء","الجامعة التكنولوجية ",2002,null,null,null,"معاون رئيس فيزياويين",4,null,"مستمر"]
[37,86584,"U 614","رائق نعمة عبدالرزاق صالح","1969-12-02",null,null,null,"اعدادية ","فني كيمياوي ","مركز المعتصم ",1988,"2001-12-11",null,null," مدير فني",3,null,"مستمر"]
[38,41191,"U 934","رسل علاء حسين عباس","1980-06-21",null,null,null,"بكالوريوس ","علوم حاسبات","جامعة بغداد",2002,"1998-09-30",null,null,"رئيس مبرمجين",3,null,"مستمر"]
[39,69019,"U940","رغد عبدالساده بدر رباط","1977-03-29",null,null,null,"بكالوريوس  ","رياضيات","الجامعة المستنصرية",1998,"1995-11-27",null,null,"رئيس مبرمجين",3,null,"تنسيب داخل الدائرة "]
[40,71188,"U 939","ريم رياض حسن ناصر","1979-10-01",null,null,null,"بكالوريوس هندسة ","سيطرة ونظم  ","الجامعة التكنولوجيا ",2013,"1997-01-07",null,null,"معاون رئيس مهندسين",4,null,"مستمر"]
[41,85073,"U 493","زاهد مهدي حسون احمد","1964-02-15",null,null,null,"دبلوم فني ","الكترونيك","معهد تكنولوجيا ",1985,"2001-04-16",null,null,"مدير فني أقدم",2,null,"مستمر"]
[42,70793,"U 456","زهراء عبدالستار سلمان ","1980-05-18",null,null,null,"بكالوريوس هندسة ","تقنيات حاسوب  ","كلية السلام الجامعة ",2017,"1996-10-19",null,null,"معاون ر. مهندسين تقنيين",4,null,"مستمر"]
[43,63894,"U 452","زينب منذر عريبي جاسم","1980-09-01",null,null,null,"دبلوم فني ","حاسبات ","معهد ادارة / الرصافة",2001,"1997-09-21",null,null,"معاون مدير فني",4,null,"مستمر"]
[44,54550,"U 557","سالم صباح زبالة عباس","1970-03-01",null,null,null,"بكالوريوس"," فيزياء","جامعة بغداد ",1993,"1989-11-20",null,null,"رئيس فيزياويين اقدم",2,null,"مستمر"]
[45,36838,"U 880","سجاد جاسب حسين ماجد","1967-07-01",null,null,null,"ماجستير هندسة ","اتصالات  ","الجامعة التكنولوجيا ",2000,"1984-11-18",null,null,"رئيس مهندسين اقدم",2,null,"مستمر"]
[46,69728,"U 424","سلام محمد هاشم كناد","1978-03-02",null,null,null,"دبلوم فني ","سيطرة ","معهد تقني كهرباء والكترونيك ",1998,"1995-05-15",null,null,"مدير فني",3,null,"مستمر"]
[47,50202,"A 785","سمير عبدالرزاق مهدي صالح","1970-12-30",null,null,null,"بكالوريوس تربية ","فيزياء","تربية ابن الهيثم",2000,"1997-12-18",null,null,"رئيس فيزياويين",3,null,"مستمر"]
[48,67016,"U 901","سمير كليبان صالح سلمان","1972-03-07",null,null,null,"دكتوراه هندسة ","حاسبات ","Uni-MAP",2014,"1986-10-05",null,null,"رئيس مهندسين اقدم",2,null,"مستمر"]
[49,67024,"U 458","سميرة كريم عبد نعمة","1969-01-01",null,null,null,"بكالوريوس هندسة ","كهرباء  ","جامعة بغداد ",1992,"1988-09-28",null,null,"رئيس مهندسين أقدم",2,null,"مستمر"]
[50,67032,"U 632","سوسن نجم عبدالله بدر","1966-12-31",null,null,null,"بكالوريوس هندسة ","سيطرة ونظم  ","الجامعة التكنولوجية ",1990,"1999-11-28",null,null,"رئيس مهندسين اقدم",2,null,"مستمر"]
[51,69809,"U 896","سيف الدين عبد جبر محسن","1973-01-01",null,null,null,"ماجستير هندسة ","ميكانيك ","جامعة سام هيكن بوتم",2014,"1998-04-28",null,null," معاون رئيس مهندسين",4,null,"مستمر"]
[52,47341,"U 217","شاكر حميد بنيان فضيل","1965-01-01",null,null,null,"بكالوريوس تربية  ","فيزياء","الجامعة المستنصرية",1989,"1989-08-29",null,null,"رئيس فيزياويين اقدم",2,null,"مستمر"]
[53,41531,"U 661","صباح خلف غافل سلطان","1968-04-07",null,null,null,"بكالوريوس تربية"," رياضيات ","جامعة بغداد",1996,"1998-01-01",null,null,"رئيس مبرمجين",3,null,"لجان طبية"]
[54,69851,"U375","صفاء قاسم عساف علوان","1974-08-01",null,null,null,"بكالوريوس ","فيزياء","التربية ابن الهيثم",1996,"1997-12-09",null,null,"رئيس فيزياويين",3,null,"مستمر"]
[55,69876,"U 446","ضحى حسن ابراهيم حمد","1971-04-15",null,null,null,"اعدادية ","اداري تجارة ","اعدادية التاجارة",1993,"1990-08-05",null,null," مدير اداري",3,null,"مستمر"]
[56,71341,"U 443","ضياء حسين جاسم محمد","1978-04-02",null,null,null,"بكالوريوس هندسة ","تقنيات حاسبات   ","كلية السلام الجامعة ",2015,"1997-05-21",null,null,"معاون رئيس مهندسين تقنيين",4,null,"مستمر"]
[57,69884,"U353","ضياء كاظم سعيد عبد","1974-01-03",null,null,null,"بكالوريوس تربية  ","فيزياء","تربية ابن الهيثم",1996,"1997-12-01",null,null,"رئيس فيزياويين",3,null,"مستمر"]
[58,70815,"U 977","ضياء مبدر محمد نجرس","1971-05-24",null,null,null,"بكالوريوس اداب ","أعلام ","كلية دجلة الجامعة ",2014,"1991-06-05",null,null," مدير فني",3,null,"مستمر"]
[59,50458,"U 1016","ظلال مجيد صالح عبدالرضا","1977-08-27",null,null,null,"ماجستير فيزياء ","ليزر ","الجامعة المستنصرية",2005,"1996-08-06",null,null,"رئيس فيزياويين اقدم",2,null,"مستمر"]
[60,38423,null,"عباس فاضل عبد الرحمن ","1967-07-02",null,null,null,"دكتوراه ",null,"جامعة بغداد ",2010,null,null,null,"رئيس محللي انظمة اقدم",2,null,"مستمر "]
[61,43273,null,"عبد الامير مناتي مشكور محمد ","1976-05-19",null,null,null,"بكلوريوس هندسة ","تقنيات حاسوب ",null,null,null,null,null,"مهندس أقدم ",5,null,"مستمر "]
[62,42366,"U 340","عبدالرزاق كاظم زين كالوس","1974-02-17",null,null,null,"اعدادية ","فني ميكانيك ","مركز المعتصم ",1996,"1993-03-21",null,null," مدير فني",3,null,"مستمر"]
[63,54674,"U 633","عبدالرسول احمد عبدالحسين ","1966-03-17",null,null,null,"اعدادية ","فني ميكانيك ","اعدادية صناعة ",1987,"1984-01-13",null,null," مدير فني",3,null,"مستمر"]
[64,89362,"U 242","عبدالكريم عبدالرضا عبدالكريم ","1968-03-15",null,null,null,"اعدادية ","فني ميكانيك ","اعدادية صناعة ",1987,"2002-07-14",null,null," مدير فني",3,null,"مستمر"]
[65,43338,"U 512","عدي شريف حمزة ياسين","1980-08-25",null,null,null,"ماجستير تربية ","فيزياء ","جامعة بغداد",2010,"1998-05-05",null,null,"معاون رئيس فيزياويين",4,null,"مستمر"]
[66,68497,"U 935","عدي هشام عبدالستار حلمي","1972-04-04",null,null,null,"ماجستير هندسة ","سيطرة ونظم  ","بولطافا التقنية الوطنية",2014,"1991-05-23",null,null,"رئيس مهندسين",3,null,"مستمر"]
[67,73271,"P 980","عطية عبدالرحمن عطية عبدالله","1966-07-01",null,null,null,"بكالوريوس ","ادارة واقتصاد ","ادارة واقتصاد",1989,"1985-07-19",null,null,"مدير تدقيق اقدم",2,null," تنسيب داخل الوزارة "]
[68,67253,"U 705","علي داخل خربيط حافظ","1971-07-01",null,null,null,"بكالوريوس هندسة ","كهرباء  ","كلية الرشيد",1996,"1993-03-01",null,null,"رئيس مهندسين اقدم",2,null,"مستمر"]
[69,115045,"U 163","علي عامر محمد عبدالله","1978-10-06",null,null,null,"بكالوريوس ","فيزياء","الجامعة التكنولوجية",2009,"2007-12-21",null,null,"فيزياوي اقدم",5,null,"مستمر"]
[70,96431,"U 628","علي عبد جابر عيسى","1967-09-19",null,null,null,"اعدادية ","فني ميكانيك ","اعدادية صناعة الكرخ ",1988,"2004-02-03",null,null," مدير فني",3,null,"مستمر"]
[71,113141,"U 151","علي عبدالستار حميد حمادي","1988-07-09",null,null,null,"ماجستير هندسة ","كهرباء ","التقنية الهندسية الكهربائية والالكترونية ",2010,"2007-12-10",null,null,"مهندس اقدم",5,null,"مستمر"]
[72,72176,"U 085","عماد راشد عباس حسين","1976-12-28",null,null,null,"ابتدائية",null,"ابتدائية ",null,"1990-12-27",null,null,"رئيس حرفيين اقدم",5,null,"مستمر"]
[73,56812,"U521","عماد قحطان وحيد جمعة","1964-07-01",null,null,null,"بكالوريوس هندسة ","ميكانيك ","كلية الرافدين",2012,"1988-12-18",null,null," رئيس مهندسين",3,null,"مستمر"]
[74,43478,"U209","عمار جمعة هاشم شويع","1980-02-10",null,null,null,"دبلوم فني ","مدني رسم هندسي ","معهد تكنولوجيا ",2002,"1999-01-03",null,null,"معاون مدير فني",4,null,"مستمر"]
[75,65315,"U 100","عمر عادل عبدالرزاق شهاب","1968-02-05",null,null,null,"ماجستير هندسة ","سيطرة ونظم  ","الجامعة التكنولوجية ",2002,"2007-06-20",null,null,"رئيس مهندسين اقدم",2,null,"مستمر"]
[76,70106,"U 055","عمر عبدالصمد خلف احمد","1974-07-01",null,null,null,"بكالوريوس هندسة ","تقنيات حاسبات  ","كلية السلام الجامعة ",2015,"1992-05-03",null,null,"رئيس مهندسين تقنيين",3,null,"مستمر"]
[77,67301,"U 477","عمر قحطان احمد دليمي","1972-10-07",null,null,null,"بكالوريوس هندسة ","كهرباء ","الجامعة التكنولوجية",1996,"1992-12-14",null,null,"رئيس مهندسين اقدم",2,null,"مستمر"]
[78,67326,"U 950","غسان خلف زبون عذار","1971-12-12",null,null,null,"ماجستير هندسة ","قدرة كهربائية  ","جامعة هيكنبوتوم",2014,"1993-01-26",null,null,"رئيس مهندسين اقدم",2,null,"مستمر"]
[79,38679,"U522","غصون ربيع هاشم احمد","1967-11-08",null,null,null,"دبلوم ","احصاء ","معهد ادارة / الرصافة",1989,"1986-02-02",null,null,"رئيس احصائيين أقدم",2,null,"مستمر"]
[80,39268,null,"فائز هادي محمود جاسم  ","1975-01-24",null,null,null,"دكتوراه هندسة",null,"المملكة المتحدة / جامعة هيلدزفيلد",2022,null,null,null,"معاون رئيس مهندسين",4,null,"مستمر "]
[81,43540,"U 562","فارس جابر حسن علي","1975-07-09",null,null,null,"هندسة تبريد وتكييف  ",null,"معهد تكنولوجيا ",1998,"1998-07-03",null,null,"معاون ر. مهندسين تقنيين",4,null,"مستمر"]
[82,54097,"U 379","قاسم ظاهر كاظم موسى","1967-11-22",null,null,null,"اعدادية ","فني ميكانيك ","اعدادية صناعة ",1987,"1983-08-23",null,null," مدير فني",3,null,"مستمر"]
[83,68780,null,"لمياء كاظم جواد كاظم","1970-08-21",null,null,null,"دبلوم فني ","كهرباء ","معهد البعث ",1993,null,null,null,"معاون مدير فني",4,null,"مستمر"]
[84,68799,"U 938","مازن خضير احمد كريم","1977-01-15",null,null,null,"بكالوريوس هندسة ","ميكاترونيكس ","جامعة بغداد",2014,"1997-08-24",null,null,"معاون رئيس مهندسين",4,null,"مستمر"]
[85,89230,"U 563","محمد جاسم مطشر جبر","1974-05-27",null,null,null,"بكلوريوس هندسة ","تقنيات حاسوب ","كلية مدينة العلم الجامعة",2014,"2002-06-06",null,null,"ر. مهندسين تقنيين",3,null,"مستمر"]
[86,42481,"U 268","محمد سلام فاضل حسن","1975-03-03",null,null,null,"دبلوم فني ","ميكانيك ","معهد الامين ",1999,"1995-02-27",null,null,"مدير فني",3,null,"تنسيب خارج الوزارة"]
[87,93769,"U 602","ممدوح عباس ناصر حسين","1967-06-08",null,null,null,"بكلوريوس ",null,"كلية مدينة العلم الجامعة",2010,"2003-05-26",null,null,"مهندس أقدم ",5,null,"مستمر"]
[88,60100,null,"منى خليل شيحان ضامن","1972-03-23",null,null,null,"دكتوراه هندسة ","ميكانيك ","جامعة UPM الماليزية ",2019,"1990-10-24",null,null,"رئيس مهندسين اقدم",2,null,"مستمر"]
[89,4448,"U 915","منى محمود لطيف مطلك","1975-12-18",null,null,null,"بكلوريوس هندسة ","زراعية بستنة  ","جامعة بغداد",1997,"1994-12-04",null,null,"ر. مهندسين زراعيين اقدم",2,null,"مستمر"]
[90,43801,"U 929","مهند مشتت حمادي راضي","1980-01-20",null,null,null,"دبلوم فني ","مدني رسم هندسي ","معهد تكنولوجيا بغداد",2002,"1999-01-04",null,null,"معاون مدير فني",4,null,"مستمر"]
[91,67679,"U 1051","ميثم صبري جابر عباس","1971-03-01",null,null,null,"دكتوراه هندسة ","الكترونيك واتصالات  ","جامعة بغداد",2013,"1988-11-16",null,null,"رئيس مهندسين اقدم",2,null,"مستمر"]
[92,30899,"U 571","نعماء ابراهيم عبدالله لايذ","1968-07-07",null,null,null,"دبلوم فني ","ميكانيك ","معهد التكنولوجيا بغداد",1991,"1990-02-25",null,null,"مدير فني أقدم ",2,null,"مستمر"]
[93,128627,null,"هبة ثامر رحيم جبارة","1989-05-09",null,null,null,"بكالوريوس هندسة ",null,"كلية الرافدين",2011,null,null,null,"مهندس أقدم ",5,null,"اجازة اعالة"]
[94,40673,"U 680","وداد هاشم محمد علوان","1968-03-04",null,null,null,"بكالوريوس هندسة ","تقنيات حاسبات ","جامعة مدينة العلم",2014,"1989-01-23",null,null,"رئيس مشرف بيانات اقدم",4,null,"مستمر"]
[95,97268,"U 399","وسام فلاح حسن كاظم","1984-03-14",null,null,null,"بكلوريوس هندسة ","سيطرة ونظم ","الجامعة التكنولوجية",2006,"2004-02-16",null,null,"معاون رئيس مهندسين",4,null,"مستمر "]
[96]
[97]
[98]
[99]
[100]
[101]
[102]
[103]
[104]
[105]
[106]
[107]
[108]
[109]
[110]
[111]
[112]
[113]
[114]
[115]
[116]
[117]
[118]
[119]
[120]
[121]
[122]
[123]
[124]
[125]
[126]
[127]
[128]
[129]
[130]
[131]
[132]
[133]
[134]
[135]
[136]
[137]
[138]
[139]
[140]
[141]
[142]
[143]
[144]
[145]
[146]
[147]
[148]
[149]
[150]
[151]
[152]
[153]
[154]
[155]
[156]
[157]
[158]
[159]
[160]
[161]
[162]
[163]
[164]
[165]
[166]
[167]
[168]
[169]
[170]
[171]
[172]
[173]
[174]
[175]
[176]
[177]
[178]
[179]
[180]
[181]
[182]
[183]
[184]
[185]
[186]
[187]
[188]
[189]
[190]
[191]
[192]
[193]
[194]
[195]
[196]
[197]
[198]
[199]
[200]
[201]
[202]
[203]
[204]
[205]
[206]
[207]
[208]
[209]
[210]
[211]
[212]
[213]
[214]